Cogmind - Beta 15 @@@ ROGUE MODE // 2025.07.30 @ 18:19:13 Player: vorpal Result: Destroyed by G-34 Mercenary with Small Laser Performance ------------- Evolutions (0) 0 Regions Visited (1) 200 Robots Destroyed (6) 30 Value Destroyed (166) 166 Prototype IDs (0) 0 Alien Tech Used (0) 0 Bonus (0) 0 TOTAL SCORE: 396 Bonus ------- None Cogmind --------- Core Integrity 0/250 Matter 259/300 Energy 90/100 System Corruption 0% Temperature Warm (112) Movement Core (150) Ox2 Location -10/Materials Parts ------- > --- POWER (1) -------- (None) > --- PROPULSION (2) --- (None) > --- UTILITY (2) ------ Small Storage Unit Core Shielding > --- WEAPON (2) ------- Medium Laser > --- INVENTORY (8) ---- Light Ion Engine Improved Heat Sink Targeting Computer Core Shielding Propulsion Shielding Medium Laser Mining Laser Peak State ------------ > --- POWER ------------ Ion Engine > --- PROPULSION ------- Light Treads Light Treads > --- UTILITY ---------- Small Storage Unit Core Shielding > --- WEAPON ----------- Light Assault Rifle Light Assault Rifle > --- INVENTORY -------- Ion Engine Light Ion Engine Improved Heat Sink Core Shielding Propulsion Shielding Medium Laser Medium Laser Mining Laser [Rating: 8] Favorites ----------- Power Light Ion Engine Engine Light Ion Engine Propulsion Light Treads Treads Light Treads Leg Aluminum Leg Utility Small Storage Unit Storage Small Storage Unit Protection Core Shielding Weapon Light Assault Rifle Energy Gun Medium Laser Ballistic Gun Light Assault Rifle Build | -11 -10 ------- Run | Yrd Mat Slots Evolved . | . . Power . | . . Propulsion . | . . Utility . | . . Weapon . | . . Parts Attached 13 | 9 4 Power 3 | 1 2 Engine 3 | 1 2 Core . | . . Reactor . | . . Propulsion 4 | 4 . Treads 2 | 2 . Leg 2 | 2 . Wheel . | . . Hover . | . . Flight . | . . Utility 3 | 1 2 Device . | . . Storage 1 | 1 . Processor . | . . Hackware . | . . Protection 2 | . 2 Artifact . | . . Weapon 3 | 3 . Energy Gun 1 | 1 . Energy Cannon . | . . Ballistic Gun 2 | 2 . Ballistic Cannon . | . . Launcher . | . . Special Weapon . | . . Impact Weapon . | . . Slashing Weapon . | . . Piercing Weapon . | . . Special Melee Weapon . | . . Unidentified Prototypes . | . . Parts Lost 6 | . 6 Power 2 | . 2 Propulsion 2 | . 2 Utility . | . . Weapon 2 | . 2 Highest Loss Streak 5 | . 5 To Critical Strikes . | . . Average Backups 5 | 2 6 Power 1 | . 1 Propulsion 1 | 1 1 Utility 1 | . 1 Weapon 2 | . 2 Tool/Special . | . . Unused Backups 6 | . 6 Power 1 | . 1 Propulsion . | . . Utility 3 | . 3 Weapon 2 | . 2 Tool/Special . | . . Average Slot Usage (%) 90 | . 90 Engine 13 | . 13 Treads 26 | . 26 Storage 13 | . 13 Protection 8 | . 8 Energy Gun 1 | . 1 Ballistic Gun 26 | . 26 Peak Build Rating 8 | 6 8 Average Rating 6 | 4 6 On Entrance 3 | . 6 Naked Turns . | . . Heaviest Build 14 | 11 14 Greatest Support 40 | 40 40 Greatest Overweight (x) 2 | . 2 Average Overweight (x) . | . . Largest Inventory Capacity 8 | 8 8 Average Capacity 7 | 7 7 Most Carried 8 | 4 8 Average Carried 5 | 2 6 Final Capacity 8 | 8 8 Final Carried 7 | 4 7 Class Distribution -------------------- 100% | Mutant Dominant Class ---------------- Mutant | -10/Materials Resources | -11 -10 ----------- Run | Yrd Mat Matter Collected 357 | 183 174 Remotely . | . . Salvage Created 220 | . 220 Parts 11 | . 11 Haulers Intercepted . | . . Recyclers Shooed 1 | . 1 Parts Field Recycled . | . . Retrieved Matter . | . . Parts Self-Destructed . | . . Prevented . | . . Kills | -11 -10 ------- Run | Yrd Mat Combat Hostiles Destroyed 4 | . 4 Guns 4 | . 4 Classes Destroyed 3 | . 3 Worker 1 | . 1 Watcher 1 | . 1 Grunt 4 | . 4 Best Kill Streak 3 | . 3 Combat Bots Only 2 | . 2 Max Kills in Single Turn 1 | . 1 Gunslinging . | . . Exploded . | . . Melee . | . . Uniques/NPCs Destroyed . | . . Combat | -11 -10 -------- Run | Yrd Mat Hostile Shots Fired 94 | . 94 Missed 15 | . 15 Hits 79 | . 79 Projectile 79 | . 79 Critical Strikes 2 | . 2 Damage Taken 1048 | . 1048 Core 252 | . 252 Absorbed by Shields . | . . Redirected to Shielding 81 | . 81 Core Remaining (%) 100 | 100 . Volleys Fired 48 | . 48 Largest 2 | . 2 Hottest 70 | . 70 Shots Fired 89 | . 89 Gun 89 | . 89 Cannon . | . . Launcher . | . . Special . | . . Kinetic 78 | . 78 Thermal 11 | . 11 Explosive . | . . Electromagnetic . | . . Robot Hit Streak 11 | . 11 Robot Miss Streak 4 | . 4 Penetration Max . | . . Secondary Targets . | . . Shots Hit Robots 54 | . 54 Core Hits 22 | . 22 Critical Kills 1 | . 1 Critical Parts Destroyed . | . . Critical Strikes 1 | . 1 Destroy 1 | . 1 Melee Attacks . | . . Impact . | . . Slashing . | . . Piercing . | . . Sneak Attacks . | . . Combat Hostiles . | . . Follow-up Attacks . | . . Damage Inflicted 473 | . 473 Guns 473 | . 473 Cannons . | . . Explosions . | . . Melee . | . . Ramming . | . . Kinetic 400 | . 400 Thermal 73 | . 73 Explosive . | . . Electromagnetic . | . . Impact . | . . Slashing . | . . Piercing . | . . Highest Corruption . | . . Average Corruption . | . . Corruption Purged . | . . Corruption Blocked . | . . Overload Shots . | . . Overflow Damage . | . . Projectiles . | . . Explosions . | . . Melee . | . . Knockbacks . | . . Impact . | . . Kinetic . | . . Secondary . | . . Self-Inflicted Damage . | . . Shots . | . . Rammed . | . . Targets Rammed . | . . Kicked . | . . Crushed . | . . Highest Temperature 103 | . 103 Average Temperature 34 | . 34 Received Heat Transfer 630 | . 630 Siege Activations . | . . Martial Activations . | . . Shielding Activations . | . . Robots Disrupted . | . . Combat Hostiles . | . . Robots Corrupted . | . . Combat Hostiles . | . . Parts Fried . | . . Impact Corruptions . | . . Robots Melted . | . . Combat Hostiles . | . . Parts Melted . | . . Heat Transferred 222 | . 222 Parts Sabotaged . | . . Parts Stolen . | . . Parts Stripped . | . . Power Chain Reactions . | . . Alert | -11 -10 ------- Run | Yrd Mat Maximum Alert Level . | . . Low Security (%) 100 | 100 100 Level 1 . | . . Level 2 . | . . Level 3 . | . . Level 4 . | . . Level 5 . | . . High Security . | . . Max Security . | . . Peak Influence 50 | . 50 Initial . | . . Average 7 | . 8 Influence Increases 107 | . 107 Destroy 0b10 Robot/C 80 | . 80 Destroy 0b10 Robot/NC 10 | . 10 Destroy Leader 12 | . 12 Successful Hack 5 | . 5 Influence Decreases 97 | . 97 Time Decay 77 | . 77 Lost Part 20 | . 20 Squads Dispatched 1 | . 1 Investigation 1 | . 1 Extermination . | . . Reinforcement . | . . Assault . | . . Garrison . | . . Intercept . | . . Searches Triggered . | . . Construction Impeded . | . . Haulers Reinforced . | . . Active Scanning Responses . | . . Cargo Convoy Interrupts . | . . Stealth | -11 -10 --------- Run | Yrd Mat Distress Signals . | . . Communications Jammed . | . . Distress Signals . | . . Times Spotted 11 | . 11 Peak Tracking Total 4 | . 4 Tactical Retreats . | . . Traps | -11 -10 ------- Run | Yrd Mat Traps Triggered . | . . Indirectly . | . . Trap Hack Attempts . | . . Triggered . | . . Disarmed . | . . Reprogrammed . | . . Reused . | . . Traps Extracted . | . . Installed . | . . Triggered . | . . Machines | -11 -10 ---------- Run | Yrd Mat Machines Disabled . | . . Max in Single Turn . | . . Machines Repaired . | . . Machines Dismantled . | . . Machines Sabotaged . | . . Overloaded Fab Kills . | . . Hacking | -11 -10 --------- Run | Yrd Mat Machines Accessed 3 | . 3 Terminals 3 | . 3 Fabricators . | . . Repair Stations . | . . Recycling Units . | . . Scanalyzers . | . . Garrison Access . | . . Total Hacks 10 | . 10 Successful 4 | . 4 Failed 6 | . 6 Catastrophic 2 | . 2 Database Lockouts . | . . Manual 5 | . 5 Terminals 10 | . 10 Fabricators . | . . Repair Stations . | . . Recycling Units . | . . Scanalyzers . | . . Garrison Access . | . . Terminal Hacks 4 | . 4 Robot Analysis 1 | . 1 Emergency Access Points 1 | . 1 Terminal Index 1 | . 1 Locate Traps 1 | . 1 Fabricator Hacks . | . . Repair Station Hacks . | . . Recycling Unit Hacks . | . . Scanalyzer . | . . Garrison Access Hacks . | . . Unauthorized Hacks . | . . Terminals . | . . Fabricators . | . . Repair Stations . | . . Recycling Units . | . . Scanalyzers . | . . Garrison Access . | . . Data Cores Recovered . | . . Used . | . . Hacking Detections 3 | . 3 Full Trace Events 3 | . 3 Feedback Events . | . . Feedback Blocked . | . . Robot Schematics Acquired . | . . Robots Built . | . . Authchips . | . . Time . | . . Total Robot Build Rating . | . . Part Schematics Acquired . | . . Parts Built . | . . Authchips . | . . Time . | . . Total Part Build Rating . | . . Parts Repaired . | . . Time . | . . Parts Recycled . | . . Recycled Matter . | . . Retrieved Matter . | . . Retrieved Components . | . . Parts Scanalyzed . | . . Part Schematics Acquired . | . . Parts Damaged . | . . Bothacking | -11 -10 ------------ Run | Yrd Mat Used RIF Installer . | . . Robots Hacked . | . . Non-combat . | . . Combat . | . . Robot Hacks Applied . | . . Relay Couplers Released . | . . Fabnet Peak Effective % . | . . Robots Rewired . | . . Allies Hacked . | . . Hacks Repelled . | . . Allies | -11 -10 -------- Run | Yrd Mat Total Allies . | . . Largest Group . | . . Highest-Rated Group . | . . Highest-Rated Ally . | . . Total Orders . | . . Ally Attacks . | . . Total Damage . | . . Kills . | . . Allies Corrupted . | . . Allies Melted . | . . Intel | -11 -10 ------- Run | Yrd Mat Active Infowar (turns) . | . . Robot Analysis Total 1 | . 1 Derelict Logs Recovered . | . . Drone Launches . | . . Drone Recoveries . | . . Exploration | -11 -10 ------------- Run | Yrd Mat Turns Passed 486 | 68 418 Spaces Moved 205 | 41 164 Core 8 | 7 1 Treads 184 | 21 163 Legs 13 | 13 . Wheels . | . . Hover . | . . Flight . | . . Fastest Speed 50 | 50 150 Average Speed 153 | 128 159 Slowest Speed 160 | 160 160 Overloaded Moves . | . . Propulsion Burnouts . | . . Robots Hopped . | . . Potential Cave-ins . | . . Cave-ins Triggered . | . . Exploration Rate (%) 17 | 3 32 Regions Visited 1 Branch Regions . Pre-discovered Areas . | . . Known Exits Taken . | . . Unknown Exits Taken 1 | 1 . Scrap Searched . | . . Spaces Dug . | . . Terrain Destroyed . | . . Melee . | . . Projectile . | . . AOE . | . . Terrain Rammed . | . . Walls Destroyed . | . . Machines Disabled . | . . Actions | -11 -10 --------- Run | Yrd Mat Total 302 | 54 248 Wait 18 | . 18 Move 204 | 40 164 Hop . | . . Pick Up 9 | 2 7 Fast Attach 11 | 8 3 Attach 3 | 1 2 Detach 3 | 3 . Swap 1 | . 1 Drop 5 | . 5 Fire 48 | . 48 Melee . | . . Ram . | . . Kick . | . . Crush . | . . Escape Stasis . | . . Rewire . | . . Trap . | . . Miscellaneous . | . . Route ------- -11/Scrapyard -10/Materials (discovered 1 exit: [*Min]) History --------- Turn | Location | Event 18 | -11/Scrapyard | Discovered new exit (range 16) 69 | -11/Scrapyard | Entered Materials 318 | -10/Materials | Build established: Mutant 369 | -10/Materials | Discovered new exit (range 14) 459 | -10/Materials | Core integrity fell below 50% 483 | -10/Materials | Core integrity fell below 20% 487 | -10/Materials | Destroyed by G-34 Mercenary with Small Laser Last Messages --------------- repair station. 00362_ K-01 Serf cleans the Terminal. 00369_ EXIT=FOUND 00374_ K-01 Serf cleans the Terminal. 00377_ Acquired Targeting Computer. 00380_ Connecting with Terminal... 00416_ Machine disabled. 00417_ K-01 Serf collects debris. 00420_ Critical hit (Burn: +37). 00430_ G-34 Mercenary destroyed. 00430_ K-01 Serf collects debris. 00440_ Acquired 36 matter. 00447_ Lgt. Treads destroyed. 00451_ Lgt. Assault Rifle destroyed. 00453_ R-06 Scavenger collects Ion Engine. 00453_ Critical hit (Burn: +37). 00465_ Lgt. Treads destroyed. 00469_ Ion Engine destroyed. 00472_ G-34 Mercenary destroyed. 00475_ Lgt. Assault Rifle destroyed. Map ----- +----------------------------------------------------+ | ?????????????????????????????????????????????????? | | ?????????????????????????????????????????????????? | | ?????????????????????????????????????????????????? | | ?????????????????????????????????????????????????? | | ?????????????????????????????????????????????????? | | ?????????????????????????????????????????????????? | | ?????????????????????????????????????????????????? | | ?????????????????????????????????????????????????? | | ?????????????????????????????????????????????????? | | ?????????????????????????????????????????????????? | | ?????????????????????????????????????????????????? | | ?????????????????????????????????????????????????? | | ?????????????????"" ?????????????????????????????? | | ????????????????? ?????????????????????????????? | | ????????????????? ????????????????????????????? | | ?????????????????"" ????????????????????????????? | | ???????????????^""" ????????????????????????????? | | ????????????????""" ####????????????????????????? | | ????????????????? #????????????????????????? | | ?????????????????? ####?????????????????????? | | ??????????????????? !##????????????????????? | | ????????????????????# !#????????????????????? | | ????????????????????# !#????????????????????? | | ????????????????????# !#????????????????????? | | ????????????????????# g !#????????????????????? | | ????????????????????# =g@!#?????????????????????? | | ????????????????????# g%####?????????????????????? | | ???????????????????## ####?????????????????????? | | ???????????????????# """#?????????????????????? | | ???????????????????# "#?????????????????????? | | ???????????????????# !"#?????????????????????? | | ???????????????????# < ""#?????????????????????? | | ???????????????????# !"#?????????????????????? | | ???????????????????# "#?????????????????????? | | ???????????????????# " "#?????????????????????? | | ???????????????????## ####?????????????????????? | | ????????????????????# #????????????????????????? | | ????????????????????# #????????????????????????? | | ????????????????????# #????????????????????????? | | ???????????????????## ##???#######??????????? | | ???????????????????# ##### #??????????? | | ???????????????????# "" #?????????? | | ???????????????????# T #?????????? | | ???????????????????# #?########## | | ???????????????????# ##### #?# # | | ???????????????????########T### ##?# """"" # | | ????????????????????# #### """"" # | | ????????????????????# ""## """"" # | | ????????????????????# """ """ T"## """"" # | | ????????????????????# """ """ ""## """"" # | +----------------------------------------------------+ Best States ------------- Heat Dissipation 25 Energy Generation 10 Energy Capacity 250 Matter Stores 259 Matter Capacity 300 Sight Range 16 Terrain Scan Density 10 Core Shielding 20 Propulsion Shielding 33 Evasion (%) 45 Recoil Reduction 2 Item Schematics ----------------- None Robot Schematics ------------------ None Fabricated ------------ Nothing Repaired ---------- Nothing Alien Tech Used ----------------- None Achievements -------------- None Challenges ------------ None Game ------ Seed StorageLightCyclogen Manual? 0 Play Time 00:13:11 Cumulative 6.2 hours Start 2025.07.30 @ 18:04:14 End 2025.07.30 @ 18:19:13 Sessions 1 Manual Loads 0 Difficulty Rogue Special Mode None Game No. 9 Rogue 9 Adventurer 0 Explorer 0 Win Type - Total 0 Types 0/0/0/0/0/0/0/0/0/0 Lore% 6 Gallery% 5 Achievement% 7 Wizard Run 0 Options --------- Layout 1 ASCII 0 Keyboard 0 Movement Mouse Keybinds 0 Fullscreen 2 Font 24/Crisp Map View 50x35 Zoom Use 0% Tactical HUD 1 Map Filters NONE Filters NONE Steam 1 RUN: b2b23ba0-355d-439c-9fbb-87ee0ffc7ec7